Cogmind - Beta 14 @@@ ROGUE MODE // 2024.11.27 @ 03:19:44 Player: celerysam Result: Self-destructed Performance ------------- Evolutions (2) 1000 Regions Visited (3) 600 Robots Destroyed (28) 140 Value Destroyed (672) 672 Prototype IDs (1) 20 Alien Tech Used (0) 0 Bonus (0) 0 TOTAL SCORE: 2432 Bonus ------- None Cogmind --------- Core Integrity 538/550 Matter 290/300 Energy 265/265 System Corruption 0% Temperature Cool (0) Movement Treading (155) Location -8/Materials Parts ------- > --- POWER (1) -------- Improved Ion Engine > --- PROPULSION (4) --- Light Treads Light Treads Advanced Treads Compact Wheel > --- UTILITY (3) ------ Large Storage Unit Structural Scanner Light Armor Plating > --- WEAPON (3) ------- Beam Rifle Flak Cannon Heavy Hammer > --- INVENTORY (15) --- Ion Engine Light Ion Engine Light Ion Engine Aluminum Leg Aluminum Leg Heat Sink Improved Signal Interpreter Propulsion Shielding EM Shotgun Small Laser Light EM Pulse Cannon Particle Cannon Assault Rifle Heavy Assault Rifle Great Maul Peak State ------------ > --- POWER ------------ Improved Ion Engine > --- PROPULSION ------- Light Treads Light Treads Advanced Treads Compact Wheel > --- UTILITY ---------- Large Storage Unit Structural Scanner Light Armor Plating > --- WEAPON ----------- Beam Rifle Flak Cannon Heavy Hammer > --- INVENTORY -------- Ion Engine Light Ion Engine Light Ion Engine Aluminum Leg Aluminum Leg Heat Sink Improved Signal Interpreter Propulsion Shielding EM Shotgun Small Laser Light EM Pulse Cannon Particle Cannon Assault Rifle Heavy Assault Rifle Great Maul [Rating: 20] Favorites ----------- Power Improved Ion Engine Engine Improved Ion Engine Propulsion Light Treads Treads Light Treads Leg Aluminum Leg Wheel Wheel Utility Large Storage Unit Device Heat Sink Storage Large Storage Unit Protection Light Armor Plating Weapon Small Laser Energy Gun Small Laser Ballistic Gun Assault Rifle Ballistic Cannon Flak Cannon Impact Weapon Heavy Hammer Build | -11 -10 -9 -8 ------- Run | Yrd Mat Mat Mat Slots Evolved 4 | . . 2 2 Power . | . . . . Propulsion 2 | . . 1 1 Utility 1 | . . 1 . Weapon 1 | . . . 1 Parts Attached 35 | 9 8 13 5 Power 6 | 1 3 2 . Engine 6 | 1 3 2 . Core . | . . . . Reactor . | . . . . Propulsion 13 | 5 2 4 2 Treads 5 | 1 . 3 1 Leg 1 | 1 . . . Wheel 7 | 3 2 1 1 Hover . | . . . . Flight . | . . . . Utility 7 | 1 2 3 1 Device 4 | . 1 2 1 Storage 2 | 1 1 . . Processor . | . . . . Hackware . | . . . . Protection 1 | . . 1 . Artifact . | . . . . Weapon 9 | 2 1 4 2 Energy Gun 5 | 1 1 2 1 Energy Cannon . | . . . . Ballistic Gun 1 | 1 . . . Ballistic Cannon 1 | . . . 1 Launcher . | . . . . Special Weapon . | . . . . Impact Weapon 2 | . . 2 . Slashing Weapon . | . . . . Piercing Weapon . | . . . . Special Melee Weapon . | . . . . Unidentified Prototypes 1 | . . 1 . Parts Lost 6 | . 1 5 . Power 2 | . 1 1 . Propulsion 3 | . . 3 . Utility 1 | . . 1 . Weapon . | . . . . Highest Loss Streak 5 | . 1 5 . To Critical Strikes . | . . . . Average Slot Usage (%) 94 | . 94 92 97 Engine 10 | . 13 10 9 Treads 15 | . . 18 27 Wheel 14 | . 28 11 6 Device 11 | . 9 13 9 Storage 11 | . 14 11 9 Protection 5 | . . 5 9 Energy Gun 14 | . 14 16 11 Ballistic Gun 4 | . 14 1 . Ballistic Cannon 1 | . . . 6 Impact Weapon 4 | . . 5 9 Peak Build Rating 20 | 6 9 14 20 Average Rating 11 | 3 7 11 17 On Entrance 7 | . 6 9 13 Naked Turns . | . . . . Heaviest Build 43 | 11 31 35 43 Greatest Support 62 | 26 26 60 62 Greatest Overweight (x) 8 | . 1 8 . Average Overweight (x) . | . . . . Largest Inventory Capacity 15 | 8 15 15 15 Average Capacity 13 | 6 12 15 15 Most Carried 15 | 6 15 15 15 Average Carried 12 | 4 9 14 14 Final Capacity 15 | 8 15 15 15 Final Carried 15 | 6 15 15 15 Class Distribution -------------------- 74% | Mutant 25% | Scavenger-Mutant Dominant Class ---------------- Mutant | -10/Materials Mutant | -9/Materials Mutant | -8/Materials Resources | -11 -10 -9 -8 ----------- Run | Yrd Mat Mat Mat Matter Collected 628 | 223 201 134 70 Remotely . | . . . . Salvage Created 1095 | . 422 440 233 Parts 62 | . 22 24 16 Haulers Intercepted 3 | . 2 1 . Recyclers Shooed 1 | . . . 1 Parts Field Recycled . | . . . . Retrieved Matter . | . . . . Parts Self-Destructed . | . . . . Prevented . | . . . . Kills | -11 -10 -9 -8 ------- Run | Yrd Mat Mat Mat Combat Hostiles Destroyed 21 | . 6 10 5 Melee 1 | . . . 1 Guns 19 | . 6 10 3 Cannons 1 | . . . 1 Classes Destroyed 8 | . 3 3 2 Worker 1 | . . . 1 Builder 1 | . 1 . . Hauler 3 | . 2 1 . Recycler 1 | . . . 1 Watcher 1 | . . 1 . Swarmer 7 | . . 3 4 Grunt 11 | . 6 5 . Sentry 3 | . . 2 1 Best Kill Streak 6 | . 4 6 5 Combat Bots Only 5 | . 4 5 4 Max Kills in Single Turn 2 | . 2 2 1 Gunslinging 1 | . 1 1 . Exploded . | . . . . Melee 1 | . . . 1 Uniques/NPCs Destroyed . | . . . . Combat | -11 -10 -9 -8 -------- Run | Yrd Mat Mat Mat Hostile Shots Fired 115 | . 34 56 25 Missed 27 | . 8 11 8 Damage Taken 1117 | . 352 613 152 Core 200 | . 36 152 12 Absorbed by Shields . | . . . . Core Remaining (%) 82 | 100 85 62 . Volleys Fired 61 | . 26 30 5 Largest 2 | . 2 2 2 Hottest 121 | . 85 121 100 Shots Fired 113 | . 52 51 10 Gun 108 | . 52 51 5 Cannon 5 | . . . 5 Launcher . | . . . . Special . | . . . . Kinetic 31 | . 26 . 5 Thermal 82 | . 26 51 5 Explosive . | . . . . Electromagnetic . | . . . . Robot Hit Streak 16 | . 16 5 6 Robot Miss Streak 8 | . 3 3 8 Penetration Max . | . . . . Secondary Targets 5 | . 2 3 . Max Gunslinging Chain 1 | . 1 1 . Shots Hit Robots 75 | . 33 35 7 Core Hits 41 | . 17 17 7 Critical Kills . | . . . . Critical Parts Destroyed . | . . . . Critical Strikes 2 | . . 2 . Burn 2 | . . 2 . Melee Attacks 18 | . . 15 3 Impact 18 | . . 15 3 Slashing . | . . . . Piercing . | . . . . Sneak Attacks 1 | . . . 1 Combat Hostiles . | . . . . Follow-up Attacks . | . . . . Damage Inflicted 1233 | . 439 631 163 Guns 945 | . 439 448 58 Cannons 40 | . . . 40 Explosions . | . . . . Melee 248 | . . 183 65 Ramming . | . . . . Kinetic 276 | . 236 . 40 Thermal 709 | . 203 448 58 Explosive . | . . . . Electromagnetic . | . . . . Impact 248 | . . 183 65 Slashing . | . . . . Piercing . | . . . . Highest Corruption . | . . . . Average Corruption . | . . . . Corruption Purged . | . . . . Corruption Blocked . | . . . . Overload Shots . | . . . . Overflow Damage 16 | . . 12 4 Projectiles . | . . . . Explosions . | . . . . Melee 16 | . . 12 4 Knockbacks 1 | . . . 1 Impact 1 | . . . 1 Kinetic . | . . . . Secondary . | . . . . Self-Inflicted Damage . | . . . . Shots . | . . . . Rammed . | . . . . Targets Rammed . | . . . . Kicked . | . . . . Crushed . | . . . . Highest Temperature 261 | . 92 261 132 Average Temperature 87 | . 66 97 66 Received Heat Transfer 462 | . 177 276 9 Siege Activations . | . . . . Robots Corrupted 1 | . . . 1 Combat Hostiles . | . . . . Parts Fried . | . . . . Impact Corruptions 2 | . . 1 1 Robots Melted . | . . . . Combat Hostiles . | . . . . Parts Melted 3 | . . 3 . Heat Transferred 1747 | . 449 1150 148 Parts Sabotaged . | . . . . Parts Stolen . | . . . . Parts Stripped . | . . . . Power Chain Reactions . | . . . . Alert | -11 -10 -9 -8 ------- Run | Yrd Mat Mat Mat Peak Influence 371 | . 180 371 253 Initial 76 | . . 76 72 Average 164 | . 76 249 146 Maximum Alert Level 1 | . . 1 1 Low Security (%) 66 | 100 100 27 89 Level 1 33 | . . 72 10 Level 2 . | . . . . Level 3 . | . . . . Level 4 . | . . . . Level 5 . | . . . . High Security . | . . . . Max Security . | . . . . Squads Dispatched 3 | . 1 2 . Investigation . | . . . . Extermination . | . . . . Reinforcement 3 | . 1 2 . Assault . | . . . . Garrison . | . . . . Intercept . | . . . . Searches Triggered . | . . . . Construction Impeded . | . . . . Haulers Reinforced . | . . . . Active Scanning Responses . | . . . . Cargo Convoy Interrupts . | . . . . Stealth | -11 -10 -9 -8 --------- Run | Yrd Mat Mat Mat Distress Signals 3 | . 1 1 1 Communications Jammed . | . . . . Distress Signals . | . . . . Times Spotted 28 | . 9 12 7 Peak Tracking Total 5 | . 5 5 4 Tactical Retreats . | . . . . Traps | -11 -10 -9 -8 ------- Run | Yrd Mat Mat Mat Traps Triggered 1 | . 1 . . Indirectly . | . . . . Trap Hack Attempts . | . . . . Triggered . | . . . . Disarmed . | . . . . Reprogrammed . | . . . . Reused . | . . . . Traps Extracted . | . . . . Installed . | . . . . Triggered . | . . . . Machines | -11 -10 -9 -8 ---------- Run | Yrd Mat Mat Mat Machines Disabled 2 | . . 2 . Max in Single Turn 1 | . . 1 . Machines Repaired . | . . . . Machines Dismantled . | . . . . Machines Sabotaged . | . . . . Overloaded Fab Kills . | . . . . Hacking | -11 -10 -9 -8 --------- Run | Yrd Mat Mat Mat Machines Accessed 3 | . . 2 1 Terminals 3 | . . 2 1 Fabricators . | . . . . Repair Stations . | . . . . Recycling Units . | . . . . Scanalyzers . | . . . . Garrison Access . | . . . . Total Hacks 6 | . . 4 2 Successful 2 | . . 1 1 Failed 4 | . . 3 1 Catastrophic 2 | . . 2 . Database Lockouts . | . . . . Manual 6 | . . 4 2 Terminals 6 | . . 4 2 Fabricators . | . . . . Repair Stations . | . . . . Recycling Units . | . . . . Scanalyzers . | . . . . Garrison Access . | . . . . Terminal Hacks . | . . . . Fabricator Hacks . | . . . . Repair Station Hacks . | . . . . Recycling Unit Hacks . | . . . . Scanalyzer . | . . . . Garrison Access Hacks . | . . . . Unauthorized Hacks 2 | . . 1 1 Terminals 2 | . . 1 1 Botnet 2 | . . 1 1 Fabricators . | . . . . Repair Stations . | . . . . Recycling Units . | . . . . Scanalyzers . | . . . . Garrison Access . | . . . . Data Cores Recovered . | . . . . Used . | . . . . Hacking Detections 2 | . . 2 . Full Trace Events . | . . . . Feedback Events . | . . . . Feedback Blocked . | . . . . Robot Schematics Acquired . | . . . . Robots Built . | . . . . Authchips . | . . . . Time . | . . . . Total Robot Build Rating . | . . . . Part Schematics Acquired . | . . . . Parts Built . | . . . . Authchips . | . . . . Time . | . . . . Total Part Build Rating . | . . . . Parts Repaired . | . . . . Time . | . . . . Parts Recycled . | . . . . Recycled Matter . | . . . . Retrieved Matter . | . . . . Retrieved Components . | . . . . Parts Scanalyzed . | . . . . Part Schematics Acquired . | . . . . Parts Damaged . | . . . . Bothacking | -11 -10 -9 -8 ------------ Run | Yrd Mat Mat Mat Used RIF Installer . | . . . . Robots Hacked . | . . . . Non-combat . | . . . . Combat . | . . . . Robot Hacks Applied . | . . . . Relay Couplers Released . | . . . . Fabnet Peak Effective % . | . . . . Robots Rewired . | . . . . Allies Hacked . | . . . . Hacks Repelled . | . . . . Allies | -11 -10 -9 -8 -------- Run | Yrd Mat Mat Mat Total Allies . | . . . . Largest Group . | . . . . Highest-Rated Group . | . . . . Highest-Rated Ally . | . . . . Total Orders . | . . . . Ally Attacks . | . . . . Total Damage . | . . . . Kills . | . . . . Allies Corrupted . | . . . . Allies Melted . | . . . . Intel | -11 -10 -9 -8 ------- Run | Yrd Mat Mat Mat Robot Analysis Total . | . . . . Derelict Logs Recovered . | . . . . Drone Launches . | . . . . Drone Recoveries . | . . . . Exploration | -11 -10 -9 -8 ------------- Run | Yrd Mat Mat Mat Turns Passed 1029 | 66 249 439 275 Spaces Moved 569 | 45 153 221 150 Core 9 | 7 . 2 . Treads 273 | 10 . 113 150 Legs 4 | 4 . . . Wheels 283 | 24 153 106 . Hover . | . . . . Flight . | . . . . Fastest Speed 50 | 50 90 95 155 Average Speed 127 | 102 95 131 159 Slowest Speed 450 | 160 105 450 160 Overloaded Moves . | . . . . Propulsion Burnouts . | . . . . Robots Hopped . | . . . . Cave-ins Triggered . | . . . . Exploration Rate (%) 19 | 3 26 28 19 Regions Visited 3 Branch Regions . Pre-discovered Areas . | . . . . Known Exits Taken . | . . . . Unknown Exits Taken 3 | 1 1 1 . Scrap Searched . | . . . . Spaces Dug 11 | . . 10 1 Terrain Destroyed 11 | . . 10 1 Melee 11 | . . 10 1 Projectile . | . . . . AOE . | . . . . Terrain Rammed . | . . . . Walls Destroyed . | . . . . Machines Disabled . | . . . . Actions | -11 -10 -9 -8 --------- Run | Yrd Mat Mat Mat Total 726 | 60 201 292 173 Wait . | . . . . Move 566 | 44 152 220 150 Hop . | . . . . Pick Up 35 | 7 13 10 5 Fast Attach 7 | 5 . 1 1 Attach 12 | 1 2 7 2 Detach . | . . . . Swap 16 | 3 6 5 2 Drop 11 | . 2 4 5 Fire 61 | . 26 30 5 Melee 18 | . . 15 3 Ram . | . . . . Kick . | . . . . Crush . | . . . . Escape Stasis . | . . . . Rewire . | . . . . Trap . | . . . . Miscellaneous . | . . . . Route ------- -11/Scrapyard -10/Materials -9/Materials -8/Materials History --------- Turn | Location | Event 35 | -11/Scrapyard | Discovered new exit (range 15) 67 | -11/Scrapyard | Entered Materials 295 | -10/Materials | Discovered new exit (range 3) 316 | -10/Materials | Entered another Materials area 316 | -9/Materials | Evolved 2 slots: Propulsion x1, Utility x1 521 | -9/Materials | Lost 5 parts (1p3n1u) 679 | -9/Materials | Discovered new exit (range 12) 755 | -9/Materials | Entered another Materials area 755 | -8/Materials | Evolved 2 slots: Propulsion x1, Weapon x1 778 | -8/Materials | Build established: Mutant 1030 | -8/Materials | Self-destructed Last Messages --------------- 00861_ R-06 Scavenger collects Com. Wheel. 00865_ R-06 Scavenger collects Lgt. Ion Engine. 00865_ Acquired 70 matter. 00896_ Dropped Lgt. Ion Engine. 00896_ Acquired Lgt. Ion Engine. 00903_ K-01 Serf collects debris. 00927_ Dropped Hvy. Assault Rifle. 00927_ Acquired Hvy. Assault Rifle. 00957_ K-01 Serf collects debris. 00963_ K-01 Serf cleans the Garrison Access. 00986_ Sneak attack on K-01 Serf. 00986_ Destroyed Lgt. Ion Engine. 00986_ K-01 Serf system corrupted by crushing effect. 00986_ K-01 Serf knocked back. 00987_ K-01 Serf system terminally corrupted. 01000_ Y-45 Defender destroyed. 01019_ R-06 Scavenger collects Beam Rifle. 01020_ R-06 Scavenger collects Imp. Ion Engine. 01021_ Dropped Lgt. Treads. 01027_ W-25 Informer sends out distress signal. Map ----- +----------------------------------------------------+ | ## ##??????## ##???????????????????? | | ## ##??????## ##???????????????????? | | ########## ##?????### ##### ???????????????? | | [ + ##?????###+##### ???????????????? | | ## ######### = ]# ???????????????? | | ## ######### # ???????????????? | | ## + " " # ???????????????? | | ########### # "G" !# ???????????????? | | ########### # " # ???????????????? | | ##???????## # !# ???????????????? | | ##???????##%######## ???????????????? | | ###########???????## # # ???????????????? | | ## ???????## # !!???????????????????? | | ??????????????????## # !!???????????????????? | | ??????????????????##!# !!???????????????????? | | ??????????????????##=# ???????????????????? | | ??????????????????##%# ??????????????????? | | ??????????????????## ###+##??????????????????? | | ??????????????????## ### ##??????????????????? | | ??????????????###### ### ##??????????????????? | | ?????????????####### ### ##??????????????????? | | ?????????????###! ## ### ########????????????? | | ?????????????##! = ## ########????????????? | | ?????????????##! ??????? | | ?????????????##! ##+########????????????? | | ?????????????##! ## ## @ ####????????????? | | ?????????????###! ## ## """ ##??????????????? | | ?????????????####### + """ ##??????????????? | | ??????????????###### # """w##??????????????? | | ??????????????????## # + ????????????? | | ?????????????????? + ! !####????????????? | | ??????????????????##/############????????????? | | ??????????????????# #########??????????????? | | ???????????????????? ????????????????????????? | | ???????????????????? ????????????????????????? | | ???????????????????? ????????????????????????? | | ???????????????????? ????????????????????????? | | ???????????????????? ????????????????????????? | | ?????????????????????????????????????????????? | | ?????????????????????????????????????????????? | | ?????????????????????????????????????????????? | | ?????????????????????????????????????????????? | | ?????????????????????????????????????????????? | | ?????????????????????????????????????????????? | | ?????????????????????????????????????????????? | | ?????????????????????????????????????????????? | | ?????????????????????????????????????????????? | | ?????????????????????????????????????????????? | | ?????????????????????????????????????????????? | | ?????????????????????????????????????????????? | +----------------------------------------------------+ Best States ------------- Heat Dissipation 38 Energy Generation 12 Energy Capacity 265 Matter Stores 300 Matter Capacity 300 Sight Range 16 Terrain Scan Range 14 Terrain Scan Density 10 Armor Coverage 150 Evasion (%) 50 Recoil Reduction 3 Item Schematics ----------------- None Robot Schematics ------------------ None Fabricated ------------ Nothing Alien Tech Used ----------------- None Achievements -------------- None Challenges ------------ None Game ------ Seed ThrowingNullMicrothruster Manual? 0 Play Time 00:17:53 Cumulative 181.1 hours Start 2024.10.10 @ 19:04:11 End 2024.11.27 @ 03:19:44 Sessions 7 Manual Loads 0 Difficulty Rogue Special Mode None Game No. 245 Rogue 245 Adventurer 0 Explorer 0 Win Type - Total 1 Types 1/0/0/0/0/0/0/0/0 Lore% 32 Gallery% 62 Achievement% 42 Wizard Run 0 Options --------- Layout 0 ASCII 0 Keyboard 0 Movement Mouse Keybinds 0 Fullscreen 1 Font 18/SmallcapsGlow Map View 76x50 Zoom Use 0% Tactical HUD 1 Map Filters NONE Filters NONE Steam 1 RUN: 3c604f48-5f0a-4434-8aab-5a7cd5965b4a